[Event "Early-Titled-Tuesday-Blitz-February-06-2024"]
[Site "Chess.com"]
[Date "2024.02.06"]
[Round "6"]
[White "santosalberto1987"]
[Black "scarabee43"]
[Result "0-1"]
[WhiteElo "2579"]
[BlackElo "2873"]
[TimeControl "180+1"]
[EndTime "9:07:32 PST"]
[Termination "scarabee43 won on time"]

1. e4 {[%clk 0:03:00.9]} 1... c5 {[%clk 0:02:59.1]} 2. Nf3 {[%clk 0:03:00.9]}
2... e6 {[%clk 0:02:59.5]} 3. g3 {[%clk 0:03:00.8]} 3... Nc6 {[%clk 0:02:59.1]}
4. Bg2 {[%clk 0:03:00.2]} 4... Nf6 {[%clk 0:02:59.2]} 5. Qe2 {[%clk 0:03:00.4]}
5... d5 {[%clk 0:02:57.3]} 6. exd5 {[%clk 0:03:00.4]} 6... Nxd5 {[%clk
0:02:56.9]} 7. O-O {[%clk 0:02:59.5]} 7... Be7 {[%clk 0:02:57]} 8. Rd1 {[%clk
0:02:58.2]} 8... Nc7 {[%clk 0:02:45.2]} 9. d4 {[%clk 0:02:50.7]} 9... cxd4
{[%clk 0:02:45.2]} 10. c3 {[%clk 0:02:45.2]} 10... Bf6 {[%clk 0:02:39.4]} 11.
Be3 {[%clk 0:02:37.2]} 11... Nd5 {[%clk 0:02:23.7]} 12. Bxd4 {[%clk 0:02:18]}
12... Nxd4 {[%clk 0:02:23]} 13. Nxd4 {[%clk 0:02:18.4]} 13... O-O {[%clk
0:02:22.6]} 14. Na3 {[%clk 0:02:17.7]} 14... Bd7 {[%clk 0:02:01.7]} 15. Nc4
{[%clk 0:02:14]} 15... Ba4 {[%clk 0:01:50.4]} 16. Rd2 {[%clk 0:02:07.5]} 16...
Qc7 {[%clk 0:01:47]} 17. Ne3 {[%clk 0:02:01.3]} 17... Nxe3 {[%clk 0:01:46.2]}
18. Qxe3 {[%clk 0:02:01.3]} 18... Rfd8 {[%clk 0:01:43.6]} 19. b3 {[%clk
0:01:57.2]} 19... Be8 {[%clk 0:01:41.4]} 20. Rad1 {[%clk 0:01:52.2]} 20... Rac8
{[%clk 0:01:38.2]} 21. c4 {[%clk 0:01:50.9]} 21... a6 {[%clk 0:01:31.5]} 22. h4
{[%clk 0:01:43.3]} 22... b5 {[%clk 0:01:27.8]} 23. cxb5 {[%clk 0:01:36.3]} 23...
axb5 {[%clk 0:01:28]} 24. Nf3 {[%clk 0:01:31]} 24... h6 {[%clk 0:01:22.6]} 25.
Rxd8 {[%clk 0:01:28.8]} 25... Rxd8 {[%clk 0:01:21.8]} 26. Rxd8 {[%clk
0:01:28.1]} 26... Qxd8 {[%clk 0:01:22.2]} 27. Qd2 {[%clk 0:01:21.3]} 27... Qc7
{[%clk 0:01:19.7]} 28. Qd3 {[%clk 0:01:00.5]} 28... Qc5 {[%clk 0:01:10.7]} 29.
Nd2 {[%clk 0:00:51.9]} 29... Qc1+ {[%clk 0:01:10.3]} 30. Kh2 {[%clk 0:00:49.1]}
30... Qb2 {[%clk 0:01:04.4]} 31. Ne4 {[%clk 0:00:42]} 31... Bd4 {[%clk
0:00:45.7]} 32. f4 {[%clk 0:00:15.6]} 32... Bc6 {[%clk 0:00:42.4]} 33. Kh3
{[%clk 0:00:14.2]} 33... Kf8 {[%clk 0:00:30.9]} 34. Bf3 {[%clk 0:00:05.8]} 34...
Ke7 {[%clk 0:00:26]} 35. Nd2 {[%clk 0:00:04.8]} 35... Bd7 {[%clk 0:00:23.8]} 36.
Be4 {[%clk 0:00:02.5]} 36... Qxa2 {[%clk 0:00:18.4]} 37. Qxd4 {[%clk 0:00:01.9]}
37... e5+ {[%clk 0:00:18.6]} 0-1

[Event "Early-Titled-Tuesday-Blitz-February-06-2024"]
[Site "Chess.com"]
[Date "2024.02.06"]
[Round "6"]
[White "Akylbek2021"]
[Black "FM_VS99"]
[Result "0-1"]
[WhiteElo "2306"]
[BlackElo "2623"]
[TimeControl "180+1"]
[EndTime "9:07:32 PST"]
[Termination "FM_VS99 won on time"]

1. d4 {[%clk 0:03:00.9]} 1... Nf6 {[%clk 0:02:58.9]} 2. c4 {[%clk 0:03:00.1]}
2... c5 {[%clk 0:02:58.6]} 3. Nf3 {[%clk 0:02:58.8]} 3... g6 {[%clk 0:02:56.9]}
4. Nc3 {[%clk 0:02:58.2]} 4... cxd4 {[%clk 0:02:56.9]} 5. Nxd4 {[%clk
0:02:59.1]} 5... Bg7 {[%clk 0:02:57.2]} 6. g3 {[%clk 0:02:59.6]} 6... O-O {[%clk
0:02:56.5]} 7. Bg2 {[%clk 0:03:00.1]} 7... Qc7 {[%clk 0:02:57.2]} 8. b3 {[%clk
0:02:43.1]} 8... d5 {[%clk 0:02:56.7]} 9. O-O {[%clk 0:02:23.6]} 9... dxc4
{[%clk 0:02:33.3]} 10. Bf4 {[%clk 0:02:22.2]} 10... Qa5 {[%clk 0:02:00.3]} 11.
Ncb5 {[%clk 0:02:10.8]} 11... Na6 {[%clk 0:01:42.5]} 12. bxc4 {[%clk 0:01:53.3]}
12... Qd8 {[%clk 0:01:37.8]} 13. Qc1 {[%clk 0:01:40.4]} 13... Nc5 {[%clk
0:01:00.7]} 14. Rd1 {[%clk 0:01:35.8]} 14... Bd7 {[%clk 0:01:01]} 15. Qa3 {[%clk
0:01:05.2]} 15... Qc8 {[%clk 0:00:44.7]} 16. Nc7 {[%clk 0:00:54.8]} 16... Nh5
{[%clk 0:00:31.3]} 17. Nxa8 {[%clk 0:00:10.2]} 17... Nxf4 {[%clk 0:00:30.7]} 18.
gxf4 {[%clk 0:00:11.1]} 18... Ne6 {[%clk 0:00:26.5]} 19. Nxe6 {[%clk 0:00:10.1]}
19... Bxe6 {[%clk 0:00:27.4]} 20. Rab1 {[%clk 0:00:09.4]} 20... Qxa8 {[%clk
0:00:27.6]} 21. Rxb7 {[%clk 0:00:09]} 21... Qc8 {[%clk 0:00:27.8]} 22. Qxa7
{[%clk 0:00:05.3]} 22... Qxc4 {[%clk 0:00:24.6]} 23. e3 {[%clk 0:00:03.9]} 23...
Qe2 {[%clk 0:00:21.7]} 24. Rbb1 {[%clk 0:00:03.3]} 24... Bf6 {[%clk 0:00:21.3]}
25. Qa3 {[%clk 0:00:02.5]} 25... Bh4 {[%clk 0:00:21.3]} 26. Rf1 {[%clk
0:00:02.3]} 26... Qg4 {[%clk 0:00:20.5]} 27. Kh1 {[%clk 0:00:02]} 27... Bf6
{[%clk 0:00:20.1]} 28. e4 {[%clk 0:00:02.4]} 28... Qxf4 {[%clk 0:00:20.1]} 29.
Qf3 {[%clk 0:00:02.5]} 29... Qh6 {[%clk 0:00:19.7]} 30. a4 {[%clk 0:00:02.7]}
30... Be5 {[%clk 0:00:20.1]} 31. h3 {[%clk 0:00:02.8]} 31... Rd8 {[%clk
0:00:19.9]} 32. a5 {[%clk 0:00:03.1]} 32... Bc4 {[%clk 0:00:17.4]} 33. Rfd1
{[%clk 0:00:03.1]} 33... Ra8 {[%clk 0:00:16.7]} 0-1

[Event "Early-Titled-Tuesday-Blitz-February-06-2024"]
[Site "Chess.com"]
[Date "2024.02.06"]
[Round "6"]
[White "edgarhay012"]
[Black "ChessSwole"]
[Result "1-0"]
[WhiteElo "2531"]
[BlackElo "2672"]
[TimeControl "180+1"]
[EndTime "9:07:33 PST"]
[Termination "edgarhay012 won by checkmate"]

1. e4 {[%clk 0:02:55.7]} 1... c5 {[%clk 0:02:58.8]} 2. Nc3 {[%clk 0:02:56]} 2...
Nc6 {[%clk 0:02:58.4]} 3. Bb5 {[%clk 0:02:56.4]} 3... Nd4 {[%clk 0:02:58.8]} 4.
Bc4 {[%clk 0:02:56.9]} 4... e6 {[%clk 0:02:58]} 5. Nge2 {[%clk 0:02:57.2]} 5...
a6 {[%clk 0:02:53.4]} 6. Nxd4 {[%clk 0:02:57.2]} 6... cxd4 {[%clk 0:02:54.3]} 7.
Ne2 {[%clk 0:02:57.9]} 7... b5 {[%clk 0:02:52.5]} 8. Bb3 {[%clk 0:02:57]} 8...
Bc5 {[%clk 0:02:45.5]} 9. d3 {[%clk 0:02:52.1]} 9... Ne7 {[%clk 0:02:42.3]} 10.
O-O {[%clk 0:02:51.7]} 10... O-O {[%clk 0:02:41.4]} 11. Ng3 {[%clk 0:02:50.5]}
11... Bb7 {[%clk 0:02:36.7]} 12. Qg4 {[%clk 0:02:48.7]} 12... Ng6 {[%clk
0:02:34.9]} 13. f4 {[%clk 0:02:46.1]} 13... Qh4 {[%clk 0:02:27.4]} 14. Qxh4
{[%clk 0:02:42.9]} 14... Nxh4 {[%clk 0:02:28.3]} 15. f5 {[%clk 0:02:43.4]} 15...
h6 {[%clk 0:02:15.7]} 16. Rf4 {[%clk 0:02:30.8]} 16... g5 {[%clk 0:02:15.4]} 17.
fxg6 {[%clk 0:02:15.8]} 17... Nxg6 {[%clk 0:02:15.7]} 18. Rf2 {[%clk 0:02:13.2]}
18... Kh7 {[%clk 0:02:02.5]} 19. Nh5 {[%clk 0:02:12]} 19... f5 {[%clk
0:02:01.3]} 20. exf5 {[%clk 0:02:06.6]} 20... exf5 {[%clk 0:02:02.2]} 21. Bd2
{[%clk 0:02:06.2]} 21... Ne5 {[%clk 0:01:42.6]} 22. h3 {[%clk 0:02:02]} 22...
Kg6 {[%clk 0:01:24.3]} 23. Nf4+ {[%clk 0:02:01.1]} 23... Kh7 {[%clk 0:01:24.9]}
24. Raf1 {[%clk 0:01:59.8]} 24... Rae8 {[%clk 0:01:09.8]} 25. Nh5 {[%clk
0:01:53.4]} 25... Kg6 {[%clk 0:01:05.6]} 26. Ng3 {[%clk 0:01:51.5]} 26... Rf6
{[%clk 0:00:56.3]} 27. Nxf5 {[%clk 0:01:47.6]} 27... Ref8 {[%clk 0:00:52.5]} 28.
Nh4+ {[%clk 0:01:43.2]} 28... Kg7 {[%clk 0:00:52.8]} 29. Rxf6 {[%clk 0:01:43.6]}
29... Rxf6 {[%clk 0:00:53.5]} 30. Rxf6 {[%clk 0:01:43.9]} 30... Kxf6 {[%clk
0:00:54.1]} 31. Bxh6 {[%clk 0:01:44.5]} 31... a5 {[%clk 0:00:43.5]} 32. a3
{[%clk 0:01:44.4]} 32... a4 {[%clk 0:00:39.2]} 33. Ba2 {[%clk 0:01:44.5]} 33...
Nc6 {[%clk 0:00:36.7]} 34. Nf3 {[%clk 0:01:41.5]} 34... b4 {[%clk 0:00:36.8]}
35. Nd2 {[%clk 0:01:40.5]} 35... Kg6 {[%clk 0:00:30.2]} 36. Ne4 {[%clk
0:01:31.2]} 36... Be7 {[%clk 0:00:26]} 37. Bc1 {[%clk 0:01:30.9]} 37... d5
{[%clk 0:00:23.8]} 38. Bxd5 {[%clk 0:01:27.8]} 38... bxa3 {[%clk 0:00:23.9]} 39.
bxa3 {[%clk 0:01:27.2]} 39... Kf5 {[%clk 0:00:21.7]} 40. h4 {[%clk 0:01:22.4]}
40... Bxh4 {[%clk 0:00:20.4]} 41. Nc5 {[%clk 0:01:16.9]} 41... Ke5 {[%clk
0:00:20.5]} 42. Be4 {[%clk 0:01:14.6]} 42... Ba8 {[%clk 0:00:20.2]} 43. Nxa4
{[%clk 0:01:13.5]} 43... Bd8 {[%clk 0:00:18.7]} 44. Nc5 {[%clk 0:01:12.9]} 44...
Be7 {[%clk 0:00:18.3]} 45. Nb3 {[%clk 0:01:12.3]} 45... Bb7 {[%clk 0:00:18]} 46.
a4 {[%clk 0:01:12.2]} 46... Nd8 {[%clk 0:00:16.7]} 47. Bxb7 {[%clk 0:01:11.8]}
47... Nxb7 {[%clk 0:00:17.6]} 48. a5 {[%clk 0:01:12.5]} 48... Nd8 {[%clk
0:00:17.4]} 49. a6 {[%clk 0:01:12.4]} 49... Nc6 {[%clk 0:00:18.1]} 50. g4 {[%clk
0:01:11.2]} 50... Bd8 {[%clk 0:00:16.3]} 51. Ba3 {[%clk 0:01:07.6]} 51... Kf4
{[%clk 0:00:15.7]} 52. Bc5 {[%clk 0:01:00.6]} 52... Bf6 {[%clk 0:00:13]} 53. a7
{[%clk 0:00:59.4]} 53... Nxa7 {[%clk 0:00:13.5]} 54. Bxa7 {[%clk 0:01:00.3]}
54... Kxg4 {[%clk 0:00:13.7]} 55. Bxd4 {[%clk 0:01:01]} 55... Bd8 {[%clk
0:00:13.8]} 56. Kf2 {[%clk 0:01:01.3]} 56... Kf4 {[%clk 0:00:14.4]} 57. Ke2
{[%clk 0:01:01.8]} 57... Kf5 {[%clk 0:00:15.1]} 58. Be3 {[%clk 0:01:02.2]} 58...
Ke6 {[%clk 0:00:15.8]} 59. Nd4+ {[%clk 0:01:02.8]} 59... Kd5 {[%clk 0:00:16.4]}
60. c4+ {[%clk 0:01:03.3]} 60... Kc5 {[%clk 0:00:16.4]} 61. Ne6+ {[%clk
0:01:03.8]} 61... Kb4 {[%clk 0:00:16.6]} 62. Nxd8 {[%clk 0:01:04.4]} 62... Ka5
{[%clk 0:00:16.8]} 63. c5 {[%clk 0:01:04.7]} 63... Ka6 {[%clk 0:00:17.3]} 64. c6
{[%clk 0:01:04.1]} 64... Kb5 {[%clk 0:00:18]} 65. c7 {[%clk 0:01:04.4]} 65...
Ka4 {[%clk 0:00:18.6]} 66. c8=Q {[%clk 0:01:04.5]} 66... Kb4 {[%clk 0:00:19.3]}
67. Qc4+ {[%clk 0:01:04.4]} 67... Ka5 {[%clk 0:00:19.4]} 68. Nb7# {[%clk
0:01:03.4]} 1-0

[Event "Early-Titled-Tuesday-Blitz-February-06-2024"]
[Site "Chess.com"]
[Date "2024.02.06"]
[Round "6"]
[White "artooon"]
[Black "tptagain"]
[Result "0-1"]
[WhiteElo "3044"]
[BlackElo "2949"]
[TimeControl "180+1"]
[EndTime "9:07:34 PST"]
[Termination "tptagain won on time"]

1. e4 {[%clk 0:03:00.4]} 1... c6 {[%clk 0:02:59]} 2. d4 {[%clk 0:03:00.6]} 2...
d5 {[%clk 0:02:59.6]} 3. e5 {[%clk 0:03:01.3]} 3... Bf5 {[%clk 0:02:59.7]} 4.
Nc3 {[%clk 0:03:01.7]} 4... h5 {[%clk 0:02:59]} 5. Nge2 {[%clk 0:02:59.9]} 5...
h4 {[%clk 0:02:58]} 6. Nf4 {[%clk 0:02:54.9]} 6... e6 {[%clk 0:02:56.3]} 7. Bd3
{[%clk 0:02:55.4]} 7... Bxd3 {[%clk 0:02:52.9]} 8. Nxd3 {[%clk 0:02:56.3]} 8...
Nd7 {[%clk 0:02:49.1]} 9. Ne2 {[%clk 0:02:44.1]} 9... c5 {[%clk 0:02:43.7]} 10.
c3 {[%clk 0:02:42.5]} 10... Ne7 {[%clk 0:02:27]} 11. dxc5 {[%clk 0:02:39.6]}
11... Nc6 {[%clk 0:02:22]} 12. b4 {[%clk 0:02:33.7]} 12... Ndxe5 {[%clk
0:02:19.7]} 13. Nxe5 {[%clk 0:02:33.9]} 13... Nxe5 {[%clk 0:02:19.6]} 14. Nd4
{[%clk 0:02:25.9]} 14... h3 {[%clk 0:02:09.9]} 15. g3 {[%clk 0:02:19.8]} 15...
g6 {[%clk 0:02:05]} 16. O-O {[%clk 0:01:58.6]} 16... Bg7 {[%clk 0:02:03.2]} 17.
Re1 {[%clk 0:01:41.4]} 17... O-O {[%clk 0:01:55.7]} 18. a4 {[%clk 0:01:28.4]}
18... a5 {[%clk 0:01:53.3]} 19. Rb1 {[%clk 0:01:09.2]} 19... Nc4 {[%clk
0:01:45.5]} 20. b5 {[%clk 0:01:02.1]} 20... e5 {[%clk 0:01:31.4]} 21. Nb3 {[%clk
0:00:59]} 21... e4 {[%clk 0:01:10.2]} 22. Nd4 {[%clk 0:00:39.4]} 22... Rc8
{[%clk 0:01:01.9]} 23. c6 {[%clk 0:00:36.3]} 23... bxc6 {[%clk 0:00:51.9]} 24.
Nxc6 {[%clk 0:00:37.2]} 24... Rxc6 {[%clk 0:00:52.2]} 25. bxc6 {[%clk 0:00:38]}
25... Ne5 {[%clk 0:00:52.8]} 26. Kh1 {[%clk 0:00:18.2]} 26... Nd3 {[%clk
0:00:40.3]} 27. Re2 {[%clk 0:00:13.4]} 27... Qd6 {[%clk 0:00:40.3]} 28. Be3
{[%clk 0:00:08.4]} 28... Qxc6 {[%clk 0:00:36.8]} 29. Qf1 {[%clk 0:00:05.2]}
29... Qe6 {[%clk 0:00:31.4]} 30. Bd4 {[%clk 0:00:02.4]} 30... Bxd4 {[%clk
0:00:26.9]} 31. cxd4 {[%clk 0:00:03.3]} 31... Qf6 {[%clk 0:00:19.4]} 32. f3
{[%clk 0:00:02.9]} 32... Qxd4 {[%clk 0:00:20.1]} 33. fxe4 {[%clk 0:00:02.7]}
33... dxe4 {[%clk 0:00:21]} 34. Rd1 {[%clk 0:00:01.8]} 34... Rd8 {[%clk
0:00:19.8]} 35. Rdd2 {[%clk 0:00:02.1]} 35... Rc8 {[%clk 0:00:19.3]} 36. Rd1
{[%clk 0:00:01.2]} 36... Qxa4 {[%clk 0:00:14.7]} 0-1

[Event "Early-Titled-Tuesday-Blitz-February-06-2024"]
[Site "Chess.com"]
[Date "2024.02.06"]
[Round "6"]
[White "FaustinoOro"]
[Black "Orest_Vovk"]
[Result "0-1"]
[WhiteElo "2761"]
[BlackElo "2586"]
[TimeControl "180+1"]
[EndTime "9:07:34 PST"]
[Termination "Orest_Vovk won by resignation"]

1. e4 {[%clk 0:03:00.9]} 1... g5 {[%clk 0:02:54.9]} 2. d4 {[%clk 0:02:59.6]}
2... g4 {[%clk 0:02:51.3]} 3. Qxg4 {[%clk 0:02:49]} 3... d5 {[%clk 0:02:50.9]}
4. Qf3 {[%clk 0:02:48.7]} 4... dxe4 {[%clk 0:02:50]} 5. Qxe4 {[%clk 0:02:49.6]}
5... Nf6 {[%clk 0:02:46.7]} 6. Qd3 {[%clk 0:02:49.7]} 6... Nc6 {[%clk
0:02:46.7]} 7. Nf3 {[%clk 0:02:47.6]} 7... Bg4 {[%clk 0:02:44.8]} 8. c3 {[%clk
0:02:43.6]} 8... Qd5 {[%clk 0:02:44.6]} 9. Be2 {[%clk 0:02:42.1]} 9... O-O-O
{[%clk 0:02:44.7]} 10. Nbd2 {[%clk 0:02:02.3]} 10... e5 {[%clk 0:02:41.3]} 11.
c4 {[%clk 0:01:55.9]} 11... Qa5 {[%clk 0:02:15.5]} 12. O-O {[%clk 0:01:42.6]}
12... exd4 {[%clk 0:01:56.9]} 13. Nb3 {[%clk 0:01:41.5]} 13... Qh5 {[%clk
0:01:50.9]} 14. Bf4 {[%clk 0:01:40.4]} 14... Nb4 {[%clk 0:01:41.7]} 15. Qd2
{[%clk 0:01:35.1]} 15... Ne4 {[%clk 0:01:35.9]} 16. Qc1 {[%clk 0:01:25.3]} 16...
d3 {[%clk 0:01:31]} 17. Bd1 {[%clk 0:01:25.2]} 17... Rg8 {[%clk 0:01:24.4]} 18.
Bg3 {[%clk 0:01:21.7]} 18... Bh6 {[%clk 0:01:17.2]} 19. Qb1 {[%clk 0:01:20.9]}
19... f5 {[%clk 0:01:04.4]} 20. a3 {[%clk 0:01:18.2]} 20... Nc6 {[%clk
0:00:56.4]} 21. Re1 {[%clk 0:00:58.3]} 21... Nxg3 {[%clk 0:00:39.4]} 22. hxg3
{[%clk 0:00:56.7]} 22... f4 {[%clk 0:00:39.7]} 23. Nfd2 {[%clk 0:00:45.2]} 23...
fxg3 {[%clk 0:00:34.3]} 24. fxg3 {[%clk 0:00:45.1]} 24... Bxd2 {[%clk
0:00:14.7]} 25. Nxd2 {[%clk 0:00:43.9]} 25... Nd4 {[%clk 0:00:14.3]} 26. Ne4
{[%clk 0:00:20.6]} 26... Bxd1 {[%clk 0:00:10.7]} 27. Qxd1 {[%clk 0:00:21.5]}
27... Ne2+ {[%clk 0:00:10.2]} 28. Rxe2 {[%clk 0:00:15.4]} 28... dxe2 {[%clk
0:00:07.2]} 29. Qe1 {[%clk 0:00:15]} 29... Rd1 {[%clk 0:00:05.7]} 30. Nf2 {[%clk
0:00:14.5]} 30... Rxe1+ {[%clk 0:00:05.4]} 31. Rxe1 {[%clk 0:00:15.4]} 31... Re8
{[%clk 0:00:05]} 32. g4 {[%clk 0:00:16.3]} 32... Qe5 {[%clk 0:00:04.7]} 33. Kh1
{[%clk 0:00:13.5]} 33... Qxb2 {[%clk 0:00:04.7]} 34. Nh3 {[%clk 0:00:14]} 34...
Qxa3 {[%clk 0:00:04.9]} 35. Kg1 {[%clk 0:00:14]} 35... Qc3 {[%clk 0:00:05]} 36.
Kf2 {[%clk 0:00:14]} 36... Qd4+ {[%clk 0:00:05.3]} 37. Kf3 {[%clk 0:00:14]}
37... Qxc4 {[%clk 0:00:05.9]} 0-1

[Event "Early-Titled-Tuesday-Blitz-February-06-2024"]
[Site "Chess.com"]
[Date "2024.02.06"]
[Round "6"]
[White "Mackster23"]
[Black "FormerProdigy"]
[Result "1-0"]
[WhiteElo "2743"]
[BlackElo "3004"]
[TimeControl "180+1"]
[EndTime "9:07:35 PST"]
[Termination "Mackster23 won on time"]

1. e4 {[%clk 0:03:00.9]} 1... c6 {[%clk 0:02:59.8]} 2. d4 {[%clk 0:03:01]} 2...
d5 {[%clk 0:03:00.7]} 3. e5 {[%clk 0:03:01.5]} 3... Bf5 {[%clk 0:02:59.9]} 4.
Nf3 {[%clk 0:03:02.1]} 4... e6 {[%clk 0:03:00.4]} 5. Be2 {[%clk 0:03:02.5]} 5...
Nd7 {[%clk 0:03:01]} 6. O-O {[%clk 0:03:01.8]} 6... a5 {[%clk 0:03:01.6]} 7. a4
{[%clk 0:03:00.4]} 7... f6 {[%clk 0:03:01.7]} 8. Nh4 {[%clk 0:02:48.1]} 8... Be4
{[%clk 0:02:45.1]} 9. f3 {[%clk 0:02:33.9]} 9... fxe5 {[%clk 0:02:44.7]} 10.
fxe4 {[%clk 0:02:34.2]} 10... Qxh4 {[%clk 0:02:44.9]} 11. exd5 {[%clk
0:02:34.4]} 11... exd5 {[%clk 0:02:42.2]} 12. dxe5 {[%clk 0:02:34.5]} 12... Bc5+
{[%clk 0:02:33.9]} 13. Kh1 {[%clk 0:02:34.6]} 13... O-O-O {[%clk 0:02:12.7]} 14.
Bf4 {[%clk 0:02:33.9]} 14... Ne7 {[%clk 0:02:06.3]} 15. Qd2 {[%clk 0:02:28.1]}
15... Rhf8 {[%clk 0:01:36.3]} 16. e6 {[%clk 0:01:45.8]} 16... Nb6 {[%clk
0:01:14]} 17. g3 {[%clk 0:01:40.9]} 17... Qh3 {[%clk 0:01:09.8]} 18. Qxa5 {[%clk
0:01:40.5]} 18... g5 {[%clk 0:00:36.1]} 19. Qxc5 {[%clk 0:00:50.9]} 19... gxf4
{[%clk 0:00:35.5]} 20. gxf4 {[%clk 0:00:33.3]} 20... Rg8 {[%clk 0:00:23.4]} 21.
Qf2 {[%clk 0:00:33.2]} 21... d4 {[%clk 0:00:15.3]} 22. Ra3 {[%clk 0:00:32.8]}
22... Qxe6 {[%clk 0:00:15.5]} 23. a5 {[%clk 0:00:32.3]} 23... Nbd5 {[%clk
0:00:14]} 24. a6 {[%clk 0:00:32.2]} 24... Ne3 {[%clk 0:00:13.2]} 25. a7 {[%clk
0:00:17.2]} 25... Kc7 {[%clk 0:00:13.4]} 26. Re1 {[%clk 0:00:10.1]} 26... N7f5
{[%clk 0:00:12.6]} 27. Bf3 {[%clk 0:00:09.6]} 27... Qh6 {[%clk 0:00:07.5]} 28.
Rg1 {[%clk 0:00:04]} 28... Rxg1+ {[%clk 0:00:05.9]} 29. Qxg1 {[%clk 0:00:04.4]}
29... Qxf4 {[%clk 0:00:06.3]} 30. Bg2 {[%clk 0:00:04.5]} 30... Qh4 {[%clk
0:00:05.3]} 31. Bf3 {[%clk 0:00:03.5]} 31... Qh3 {[%clk 0:00:03.3]} 32. Be4
{[%clk 0:00:02.7]} 1-0

[Event "Early-Titled-Tuesday-Blitz-February-06-2024"]
[Site "Chess.com"]
[Date "2024.02.06"]
[Round "6"]
[White "Maxfan2008"]
[Black "ViralduS"]
[Result "1-0"]
[WhiteElo "2559"]
[BlackElo "2717"]
[TimeControl "180+1"]
[EndTime "9:07:36 PST"]
[Termination "Maxfan2008 won by resignation"]

1. d4 {[%clk 0:03:00.9]} 1... Nf6 {[%clk 0:02:58.8]} 2. c4 {[%clk 0:02:59.7]}
2... g6 {[%clk 0:02:56.8]} 3. Nf3 {[%clk 0:02:57.2]} 3... Bg7 {[%clk 0:02:57]}
4. g3 {[%clk 0:02:57]} 4... O-O {[%clk 0:02:56.9]} 5. Bg2 {[%clk 0:02:56.6]}
5... d6 {[%clk 0:02:57.2]} 6. O-O {[%clk 0:02:57.1]} 6... Nbd7 {[%clk
0:02:39.9]} 7. Nc3 {[%clk 0:02:56.9]} 7... e5 {[%clk 0:02:39.9]} 8. e4 {[%clk
0:02:53.6]} 8... exd4 {[%clk 0:02:38.4]} 9. Nxd4 {[%clk 0:02:54.5]} 9... Re8
{[%clk 0:02:38.6]} 10. Qc2 {[%clk 0:02:50.8]} 10... a5 {[%clk 0:02:33.5]} 11. h3
{[%clk 0:02:46.6]} 11... Nc5 {[%clk 0:02:28]} 12. Be3 {[%clk 0:02:38.8]} 12...
Bd7 {[%clk 0:02:03.1]} 13. Rad1 {[%clk 0:02:36.9]} 13... Qc8 {[%clk 0:02:01.9]}
14. Kh2 {[%clk 0:02:29.7]} 14... h5 {[%clk 0:02:01.7]} 15. f3 {[%clk 0:02:03.6]}
15... a4 {[%clk 0:01:44.4]} 16. Ndb5 {[%clk 0:02:01.8]} 16... Ne6 {[%clk
0:01:36.5]} 17. f4 {[%clk 0:01:54.7]} 17... Bc6 {[%clk 0:00:59.5]} 18. e5 {[%clk
0:01:42.7]} 18... dxe5 {[%clk 0:00:54.8]} 19. fxe5 {[%clk 0:01:42.6]} 19... Bxg2
{[%clk 0:00:43.6]} 20. Qxg2 {[%clk 0:01:43.5]} 20... Nd7 {[%clk 0:00:43.3]} 21.
Nd5 {[%clk 0:01:29.9]} 21... Nxe5 {[%clk 0:00:43.2]} 22. Qf2 {[%clk 0:01:22]}
22... f5 {[%clk 0:00:39.1]} 23. Bc5 {[%clk 0:01:10.3]} 23... Nxc5 {[%clk
0:00:29.4]} 24. Qxc5 {[%clk 0:01:09.8]} 24... c6 {[%clk 0:00:25.7]} 25. Nd6
{[%clk 0:00:58]} 25... Bf8 {[%clk 0:00:24.4]} 26. Nf6+ {[%clk 0:00:55.8]} 26...
Kh8 {[%clk 0:00:21.5]} 27. Nfxe8 {[%clk 0:00:32.5]} 27... Qxe8 {[%clk
0:00:20.6]} 28. Qxe5+ {[%clk 0:00:31.5]} 28... Qxe5 {[%clk 0:00:19.6]} 29. Nf7+
{[%clk 0:00:31.5]} 29... Kg7 {[%clk 0:00:19.9]} 30. Nxe5 {[%clk 0:00:32.4]}
30... Re8 {[%clk 0:00:18.6]} 31. Rd7+ {[%clk 0:00:31.8]} 31... Kg8 {[%clk
0:00:18.3]} 32. Nxg6 {[%clk 0:00:31.2]} 32... Re2+ {[%clk 0:00:18]} 33. Kh1
{[%clk 0:00:31.4]} 33... Bc5 {[%clk 0:00:18.1]} 34. Rxb7 {[%clk 0:00:27.1]}
34... a3 {[%clk 0:00:14.3]} 35. b4 {[%clk 0:00:26]} 35... Bd4 {[%clk 0:00:12.6]}
36. Ne7+ {[%clk 0:00:23.9]} 36... Kh8 {[%clk 0:00:12.4]} 37. Nxf5 {[%clk
0:00:24.2]} 37... Be5 {[%clk 0:00:10.5]} 38. Nd4 {[%clk 0:00:18.8]} 1-0

[Event "Early-Titled-Tuesday-Blitz-February-06-2024"]
[Site "Chess.com"]
[Date "2024.02.06"]
[Round "6"]
[White "jcibarra"]
[Black "Kazan28"]
[Result "1-0"]
[WhiteElo "2881"]
[BlackElo "2606"]
[TimeControl "180+1"]
[EndTime "9:07:39 PST"]
[Termination "jcibarra won by checkmate"]

1. e4 {[%clk 0:03:00.9]} 1... d6 {[%clk 0:03:00.9]} 2. d4 {[%clk 0:03:00.6]}
2... Nf6 {[%clk 0:03:01.2]} 3. Nc3 {[%clk 0:03:01.1]} 3... e5 {[%clk 0:03:01.4]}
4. Nf3 {[%clk 0:03:01.6]} 4... Nbd7 {[%clk 0:03:01.8]} 5. Bc4 {[%clk 0:03:02]}
5... Be7 {[%clk 0:03:02]} 6. a4 {[%clk 0:03:02.6]} 6... O-O {[%clk 0:03:02.3]}
7. O-O {[%clk 0:03:03.4]} 7... a6 {[%clk 0:02:59.8]} 8. Re1 {[%clk 0:03:02.5]}
8... b6 {[%clk 0:02:59.4]} 9. Qd3 {[%clk 0:02:55.7]} 9... Bb7 {[%clk 0:02:57.9]}
10. Ba2 {[%clk 0:02:56.3]} 10... exd4 {[%clk 0:02:36.9]} 11. Qxd4 {[%clk
0:02:54.8]} 11... Nc5 {[%clk 0:02:35]} 12. Bf4 {[%clk 0:02:50.2]} 12... Ne6
{[%clk 0:02:23.2]} 13. Qd2 {[%clk 0:02:50.7]} 13... Nxf4 {[%clk 0:02:20.1]} 14.
Qxf4 {[%clk 0:02:51.6]} 14... Nd7 {[%clk 0:02:14.6]} 15. Rad1 {[%clk 0:02:47.3]}
15... Bf6 {[%clk 0:02:12.4]} 16. Nd5 {[%clk 0:02:44.7]} 16... Rb8 {[%clk
0:02:03.3]} 17. c3 {[%clk 0:02:43.2]} 17... b5 {[%clk 0:01:58.1]} 18. axb5
{[%clk 0:02:37.6]} 18... axb5 {[%clk 0:01:59]} 19. h4 {[%clk 0:02:34.1]} 19...
Bxd5 {[%clk 0:01:51.7]} 20. Bxd5 {[%clk 0:02:31.9]} 20... b4 {[%clk 0:01:50.9]}
21. Nd4 {[%clk 0:02:25.3]} 21... Ne5 {[%clk 0:01:47.4]} 22. h5 {[%clk
0:02:14.6]} 22... bxc3 {[%clk 0:01:45.4]} 23. bxc3 {[%clk 0:02:15.5]} 23... c5
{[%clk 0:01:39.6]} 24. Nf5 {[%clk 0:02:14]} 24... Rb6 {[%clk 0:01:28.4]} 25. Qg3
{[%clk 0:02:09.1]} 25... g6 {[%clk 0:01:02.9]} 26. f4 {[%clk 0:02:05.4]} 26...
Kh8 {[%clk 0:01:02.7]} 27. Nh6 {[%clk 0:01:13.9]} 27... Bh4 {[%clk 0:00:58.9]}
28. Qh3 {[%clk 0:01:07.2]} 28... Bxe1 {[%clk 0:00:54.7]} 29. Rxe1 {[%clk
0:01:02.7]} 29... Nd3 {[%clk 0:00:20.5]} 30. Qxd3 {[%clk 0:00:57.1]} 30... Qh4
{[%clk 0:00:21.1]} 31. Qe3 {[%clk 0:00:51.2]} 31... Kg7 {[%clk 0:00:19.3]} 32.
f5 {[%clk 0:00:42.5]} 32... Qxh5 {[%clk 0:00:19]} 33. f6+ {[%clk 0:00:30.1]}
33... Kxf6 {[%clk 0:00:18.7]} 34. Nxf7 {[%clk 0:00:25.7]} 34... Kg7 {[%clk
0:00:16.5]} 35. Rf1 {[%clk 0:00:22]} 35... Rfb8 {[%clk 0:00:13.9]} 36. e5 {[%clk
0:00:21.5]} 36... Rb1 {[%clk 0:00:13.7]} 37. Qf2 {[%clk 0:00:09.9]} 37... R8b2
{[%clk 0:00:08]} 38. Qf6+ {[%clk 0:00:08.9]} 38... Kf8 {[%clk 0:00:05.3]} 39.
Nxd6# {[%clk 0:00:08.8]} 1-0